[Event "12th WLC Weekend 2022"]
[Site "Eindhoven"]
[Date "2022.05.14"]
[Round "2.1"]
[White "Beerdsen, Thomas"]
[Black "van der Valk, Niklas"]
[Result "1-0"]
[ECO "B11"]
[WhiteElo "2497"]
[BlackElo "2200"]
[Annotator "TA"]
[PlyCount "113"]
[EventDate "2022.05.13"]
[EventType "swiss"]
[EventCountry "NED"]
[SourceTitle "playchess.com"]
[Source "ChessBase"]
[SourceQuality "1"]
[TimeControl "5400+30"]

{[%evp 10,113,30,23,31,14,17,23,31,18,15,21,40,63,53,-17,0,0,0,0,55,62,72,60,63,58,61,59,61,26,29,13,8,10,12,10,12,9,20,0,24,14,93,70,65,51,56,37,50,50,50,47,52,50,50,50,100,99,102,56,83,99,108,94,250,165,281,272,328,328,452,452,462,452,452,452,502,451,821,212,740,747,592,453,457,462,415,415,420,420,423,327,327,327,328,328,328,328,350,335,29976,29977,29977,29978,29990,29991]} 1. e4 {[%emt 0:00:04]} c6 {[%emt 0:00:29]} 2. Nf3 {[%emt 0:00:19]} d5 {[%emt 0:00:29]} 3. Nc3 {[%emt 0:00:07]} dxe4 {[%emt 0:00:10]} 4. Nxe4 {[%emt 0:00:06]} Nf6 {[%emt 0:00:06]} 5. Qe2 {[%emt 0:00:08]} Nxe4 {[%emt 0:00:10]} 6. Qxe4 {[%emt 0:00:06]} Nd7 {[%emt 0:00:04] B11: Caro-Kann: Two Knights Variation.} 7. Bc4 {[%emt 0:00:09] Black must now prevent Ng5.} Nf6 {[%emt 0:00:06] [#]} 8. Ne5 $1 {[%emt 0:00:06][%csl Ge5][%cal Rc4f7]} e6 {[%emt 0:00:09] White has an edge.} 9. Qe2 {[%emt 0:00:06]} b5 {[%emt 0:00:05]} 10. Bd3 {[%emt 0:00:08]} (10. Nxc6 Qc7 11. Bd3 (11. Bxb5 a6 $17) 11... a6 $15) 10... Qc7 {[%emt 0:04:29]} 11. a4 {[%emt 0:00:33]} b4 {[%emt 0:04:16]} 12. Nxc6 {[%emt 0:00:19]} Bb7 {[%emt 0:03:55]} (12... Qxc6 $2 13. Bb5 Bd7 14. Bxc6 $18) 13. Ne5 {[%emt 0:03:17]} Bd6 {[%emt 0:04:48]} 14. Bb5+ {[%emt 0:09:58] [#]} Ke7 $146 {[%emt 0:00:14]} (14... Kf8 $11 15. d4 Bxg2) ({Predecessor:} 14... Kf8 15. d4 Bxg2 16. Rg1 Bd5 17. Bg5 h6 18. Bh4 g5 19. Bg3 Ne4 20. Nd7+ Ke7 21. Bxd6+ Qxd6 {½-½ (61) Preotu,R (2487)-Tari,A (2625) Chess.com INT 2021}) 15. d4 $14 {[%emt 0:01:31]} Rhc8 {[%emt 0:09:26] [#]} 16. Bd3 $1 {[%emt 0:03:04]} (16. Bg5 h6 17. Bc1 Qxc2 18. Qxc2 Rxc2 $15) 16... Bxe5 {[%emt 0:06:21]} (16... Bxg2 $2 17. Rg1 $18) 17. dxe5 {[%emt 0:01:11]} Nd7 {[%emt 0:01:41]} 18. O-O {[%emt 0:08:37] Threatens to win with Re1.} Nxe5 {[%emt 0:05:52]} 19. Be4 {[%emt 0:14:17] Against Qc6. And now Bxb7 would win.} Ng6 {[%emt 0:13:16]} 20. Qb5 {[%emt 0:01:53]} Bxe4 {[%emt 0:01:08]} 21. Qxb4+ {[%emt 0:00:05]} Ke8 {[%emt 0:02:15]} 22. Qxe4 {[%emt 0:00:08]} Qxc2 {[%emt 0:00:11]} 23. Qd4 {[%emt 0:03:56]} e5 {[%emt 0:09:26]} 24. Qd6 {[%emt 0:07:51]} Rc6 {[%emt 0:07:02]} 25. Qb4 {[%emt 0:03:37]} Ne7 {[%emt 0:13:56]} (25... a5 $11 {remains equal.} 26. Qb5 Qe4) 26. Bg5 {[%emt 0:06:49][%csl Gg5][%cal Rb4e7]} f6 {[%emt 0:06:30]} 27. Rac1 $36 {[%emt 0:00:10][%mdl 2048] White has the initiative.} Rb6 {[%emt 0:00:44]} 28. Qxe7+ $1 {[%emt 0:04:16]} ({Of course not} 28. Rxc2 Rxb4 29. Be3 Rxa4 $15) ({But not} 28. Qxb6 Qxc1 29. Bxc1 (29. Qb7 Qc6 $15) 29... axb6 $15) 28... Kxe7 {[%emt 0:00:04]} 29. Bxf6+ {[%emt 0:00:22]} Kxf6 {[%emt 0:00:38]} 30. Rxc2 {[%emt 0:00:06][%mdl 4096] Endgame KRR-KRR} Rab8 {[%emt 0:00:56]} 31. Re1 {[%emt 0:02:11]} Rxb2 {[%emt 0:02:23]} 32. Rc6+ {[%emt 0:00:09]} Kf7 {[%emt 0:02:23]} ({Better is} 32... Kf5 $14) 33. Rc7+ $16 {[%emt 0:00:24]} Kf6 {[%emt 0:00:05] [#]} 34. Rxa7 {[%emt 0:07:20]} ({White should play} 34. h3 $1 $16) 34... Rb1 {[%emt 0:02:42][%cal Rb1e1]} 35. Rf1 {[%emt 0:01:19] White is more active.} Rxf1+ {[%emt 0:00:08]} 36. Kxf1 {[%emt 0:00:05] KR-KR} Rb2 $2 {[%emt 0:00:05] A mistake that costs the game.} (36... Rb1+ $16 37. Ke2 Rb2+ 38. Kf3 Rb3+ 39. Ke4 Rb4+ 40. Kd3 Rb2) 37. Ra8 {[%emt 0:05:18]} Ra2 {[%emt 0:00:24]} (37... Kf5 $142 38. a5 Ke4) 38. a5 $18 {[%emt 0:00:23][%cal Ba4a5,Ba5a6,Ba6a7][%mdl 32]} h5 {[%emt 0:01:16]} 39. a6 {[%emt 0:02:11]} g6 {[%emt 0:00:21]} 40. h3 {[%emt 0:02:03]} e4 {[%emt 0:00:56]} 41. Ke1 {[%emt 0:01:03] Strongly threatening a7.} Kg7 {[%emt 0:00:28]} 42. a7 {[%emt 0:02:03]} Kh7 {[%emt 0:00:12]} 43. Kd1 {[%emt 0:01:45]} Kg7 {[%emt 0:00:21]} (43... Ra1+ $142 44. Kc2 h4) 44. Kc1 $2 {[%emt 0:00:06]} (44. g3 {aiming for Kc1.} g5 45. g4) 44... Kh7 $2 {[%emt 0:00:40]} (44... h4 45. Kb1 Ra6) 45. Kb1 {[%emt 0:00:06]} Ra6 {[%emt 0:00:31]} 46. Kb2 {[%emt 0:00:08]} Kg7 {[%emt 0:00:12]} 47. Kb3 {[%emt 0:00:07]} Ra1 {[%emt 0:01:09]} 48. g4 {[%emt 0:02:01]} hxg4 {[%emt 0:00:13]} 49. hxg4 {[%emt 0:00:07]} Kh7 {[%emt 0:00:45]} 50. g5 {[%emt 0:00:28]} Kg7 {[%emt 0:00:30]} 51. Kb4 {[%emt 0:00:04]} Kh7 {[%emt 0:00:23]} 52. Kc5 {[%emt 0:00:16] Intending Kc6 and mate.} Kg7 {[%emt 0:00:29]} 53. Kc6 {[%emt 0:00:59] Rc8 would kill now.} Rc1+ {[%emt 0:00:51]} 54. Kd6 {[%emt 0:00:47] White threatens Rb8 and mate.} Ra1 $2 {[%emt 0:00:32]} (54... Rd1+ $18 55. Ke5 Ra1) 55. Rc8 {[%emt 0:00:25] White mates.} Ra6+ {[%emt 0:00:34]} 56. Rc6 {[%emt 0:00:07]} Ra2 {[%emt 0:00:28]} 57. Rc7+ {[%emt 0:00:06] Weighted Error Value: White=0.22 (precise) /Black=0.29 (precise)} 1-0

[Event "12th WLC Weekend 2022"]
[Site "Eindhoven"]
[Date "2022.05.14"]
[Round "2.2"]
[White "Grooten, Herman"]
[Black "Albers, Sasa"]
[Result "1-0"]
[ECO "E16"]
[WhiteElo "2286"]
[BlackElo "2117"]
[Annotator "TA"]
[PlyCount "83"]
[EventDate "2022.05.13"]
[EventType "swiss"]
[EventCountry "NED"]
[SourceTitle "playchess.com"]
[Source "ChessBase"]
[SourceQuality "1"]
[TimeControl "5400+30"]

{[%evp 13,83,0,0,-12,-1,-13,2,-6,-2,-12,18,17,25,12,8,-33,0,-25,0,0,6,0,57,58,52,41,52,21,57,49,55,12,45,33,35,40,61,50,56,45,58,47,62,57,60,58,70,62,67,17,27,0,20,8,26,40,319,297,330,302,315,308,480,475,466,477,633,590,629,633,673,664]} 1. d4 {[%emt 0:00:02]} Nf6 {[%emt 0:00:07]} 2. c4 {[%emt 0:00:05]} e6 {[%emt 0:00:05]} 3. Nf3 {[%emt 0:00:11]} Bb4+ {[%emt 0:01:11]} 4. Nbd2 {[%emt 0:00:10]} O-O {[%emt 0:03:37]} 5. a3 {[%emt 0:00:21]} Be7 {[%emt 0:00:07]} 6. g3 {[%emt 0:01:59]} b6 {[%emt 0:06:02]} 7. Bg2 {[%emt 0:05:18]} Bb7 {[%emt 0:00:05]} 8. Qc2 {[%emt 0:00:56] E16: Queen's Indian: 4 g3 Bb7 5 Bg2 Bb4+.} d5 {[%emt 0:02:09]} 9. cxd5 {[%emt 0:01:41]} exd5 {[%emt 0:00:07]} 10. b4 {[%emt 0:01:57] The position is equal.} Nbd7 {[%emt 0:02:26]} 11. Rb1 {[%emt 0:00:58] [#]} a6 $146 {[%emt 0:03:02]} ({Predecessor:} 11... a5 12. b5 a4 13. O-O Bd6 14. Nh4 Re8 15. Nc4 Bf8 16. Bb2 Ne4 17. Ne5 Nxe5 18. dxe5 {0-1 (34) Grooten,H (2310)-Beerdsen,T (2497) Dieren 2019}) 12. O-O {[%emt 0:02:50]} Bd6 {[%emt 0:00:22]} 13. Nh4 {[%emt 0:03:23][%cal Od2c4,Bf3h4,Bh4g2,Bg2f4,Bf4d3][%mdl 32]} g6 {[%emt 0:07:00]} 14. f3 {[%emt 0:14:38]} Be7 {[%emt 0:05:10]} 15. Bh3 {[%emt 0:08:53]} Ne8 {[%emt 0:10:10]} 16. Ng2 {[%emt 0:02:19]} Ndf6 {[%emt 0:00:14]} 17. Bb2 {[%emt 0:01:29]} Bc8 {[%emt 0:09:08]} (17... Nd6 $11) 18. Bxc8 $14 {[%emt 0:01:09]} Rxc8 {[%emt 0:00:06]} 19. Qc6 {[%emt 0:01:22]} Qd7 {[%emt 0:11:46]} 20. Rbc1 {[%emt 0:00:21]} Nd6 {[%emt 0:03:57]} 21. Nf4 {[%emt 0:05:56]} Rfd8 {[%emt 0:09:43]} 22. Rfe1 {[%emt 0:09:01]} Nb5 {[%emt 0:09:07]} 23. Nb3 {[%emt 0:02:51]} Qxc6 {[%emt 0:04:31]} 24. Rxc6 {[%emt 0:00:14]} Rd6 {[%emt 0:00:21]} 25. Rc2 {[%emt 0:02:55]} g5 {[%emt 0:00:47]} 26. Nd3 {[%emt 0:00:38]} Re6 {[%emt 0:00:10] Inhibits e4.} 27. g4 {[%emt 0:03:05]} Bd6 {[%emt 0:00:51]} 28. Bc1 {[%emt 0:04:35]} h6 {[%emt 0:00:49]} 29. Kg2 {[%emt 0:02:30]} Kg7 {[%emt 0:00:48]} 30. h3 {[%emt 0:00:10]} Rce8 {[%emt 0:01:19]} 31. e3 {[%emt 0:04:24]} (31. Kf2 $14) 31... Na7 {[%emt 0:00:54]} 32. Rce2 {[%emt 0:02:18]} Nc6 {[%emt 0:01:20]} 33. Bb2 {[%emt 0:00:45][%cal Oe3e4] aiming for e4!} R6e7 {[%emt 0:02:59] Inhibits e4.} 34. e4 {[%emt 0:02:05][%cal Be3e4,Be4e5][%mdl 32]} Re6 {[%emt 0:01:53][%mdl 8192] Loses the game.} (34... dxe4 $14 35. fxe4 Nxe4) 35. e5 $18 {[%emt 0:00:45]} Nh7 {[%emt 0:00:56]} 36. Rc2 {[%emt 0:00:42][%cal Be2c2,Bc2c7,Bc7b7][%mdl 32]} Bf8 {[%emt 0:01:39]} 37. f4 {[%emt 0:00:38][%cal Bf3f4,Bf4f5][%mdl 32] [#] And now f5 would win.} Nb8 {[%emt 0:01:23]} (37... Na7 $142 38. Rxc7 R6e7) 38. Rxc7 {[%emt 0:00:23] White is clearly winning.} Rc6 {[%emt 0:00:23]} 39. Rc1 {[%emt 0:01:37]} Ree6 {[%emt 0:00:40]} 40. f5 {[%emt 0:01:22]} Rxc1 {[%emt 0:00:06]} 41. Nbxc1 {[%emt 0:00:39]} Rc6 {[%emt 0:00:10]} 42. Rb7 {[%emt 0:01:53] Weighted Error Value: White=0.10 (very precise) /Black=0.34} 1-0

[Event "12th WLC Weekend 2022"]
[Site "Eindhoven"]
[Date "2022.05.14"]
[Round "2.3"]
[White "Kools, Thomas"]
[Black "Baselmans, Luuk"]
[Result "0-1"]
[ECO "C11"]
[WhiteElo "2160"]
[BlackElo "2233"]
[Annotator "TA"]
[PlyCount "74"]
[EventDate "2022.05.13"]
[EventType "swiss"]
[EventCountry "NED"]
[SourceTitle "playchess.com"]
[Source "ChessBase"]
[SourceQuality "1"]
[TimeControl "5400+30"]

{[%evp 14,74,-14,-25,-9,-17,34,5,23,-60,-77,-71,-46,-262,-82,-153,-145,-143,-132,-143,-120,-133,-143,-143,-122,-149,-135,-183,-178,-185,-161,-164,-165,-172,-158,-227,-204,-216,-178,-358,-386,-369,-362,-276,-275,-384,-373,-416,-431,-429,-427,-463,-452,-480,-471,-453,-453,-29966,-29967,-29981,-29982,-29982,-29983]} 1. e4 {[%emt 0:00:03]} e6 {[%emt 0:00:07]} 2. Nc3 {[%emt 0:00:05]} d5 {[%emt 0:00:08]} 3. Nf3 {[%emt 0:00:05]} Nf6 {[%emt 0:00:12]} 4. e5 {[%emt 0:00:05]} Nfd7 {[%emt 0:00:06]} 5. d4 {[%emt 0:00:06]} c5 {[%emt 0:00:09]} 6. dxc5 {[%emt 0:00:05]} Nc6 $1 {[%emt 0:00:26] The main line 6...Nc6 scores better than 6...Bxc5.} 7. Bf4 {[%emt 0:00:06]} Nxc5 {[%emt 0:02:28]} 8. Be2 {[%emt 0:03:08]} Be7 {[%emt 0:01:46] 8...a6 is vanishing. C11: French: Classical System: 4 e5 and 4 Bg5 dxe4.} 9. O-O {[%emt 0:02:14]} Bd7 {[%emt 0:02:40]} ({Black should try} 9... O-O $11) 10. Re1 {[%emt 0:02:44]} (10. a3 $5 {[%cal Rb2b4]}) 10... g5 {[%emt 0:04:21] The position is equal.} 11. Bg3 {[%emt 0:04:28]} ({White should play} 11. Be3 $11) 11... h5 $15 {[%emt 0:00:35][%cal Bh7h5,Bh5h4][%mdl 32] Strongly threatening ...h4.} 12. h3 {[%emt 0:00:32]} Qb6 {[%emt 0:03:28]} 13. Qd2 $2 {[%emt 0:09:09] [#]} (13. Nd2 $15) 13... Rg8 $146 {[%emt 0:03:37]} (13... Qxb2 14. Reb1 Qa3 15. Nb5 $11) (13... h4 $19 {is more deadly.} 14. Bh2 Ne4 15. Nxe4 dxe4 16. Nxg5 e3 17. fxe3 Bxg5) ({Predecessor:} 13... O-O-O 14. Nxg5 Rhg8 15. Nxf7 Rdf8 16. Nd6+ Bxd6 17. exd6 Rxg3 18. Bxh5 Rgg8 19. a3 d4 {0-1 (27) Chambers,C-Ljukin,S (2362) Chess.com INT 2022}) 14. Nd4 {[%emt 0:09:23]} (14. a4 $142) 14... h4 {[%emt 0:07:44]} (14... Qxb2 15. Ndb5 d4 16. Reb1 (16. Nxd4 Nxd4 17. Qxd4 h4 $17) 16... dxc3 17. Qd1 $14) 15. Bh2 {[%emt 0:00:06]} Ne4 {[%emt 0:00:14]} (15... Qxb2 16. Ndb5 Qb4 17. Nc7+ Kd8 18. Rab1 $15 (18. Nxa8 d4 $17)) 16. Nxe4 {[%emt 0:00:46]} Qxd4 {[%emt 0:00:21]} 17. Bb5 {[%emt 0:10:01] [#] And now Bxc6 would win.} Qxd2 $1 {[%emt 0:03:49]} ({Weaker is} 17... dxe4 18. Qxd4 Nxd4 19. Bxd7+ Kxd7 20. Rad1 $11) ({Resist} 17... Qxb2 18. Reb1 Qd4 19. Bxc6 Qxe4 20. Bxd7+ Kxd7 21. Rxb7+ Ke8 22. Qc3 $16) 18. Nxd2 {[%emt 0:00:05] [#]} Nxe5 $1 {[%emt 0:00:08][%mdl 512]} 19. Bxd7+ {[%emt 0:10:55]} (19. Bf1 Nc6) 19... Nxd7 {[%emt 0:00:08]} 20. Red1 {[%emt 0:01:20]} (20. Rad1 $17 {might work better.}) 20... Rc8 {[%emt 0:02:44]} 21. Rac1 {[%emt 0:02:43]} g4 {[%emt 0:04:27]} 22. hxg4 {[%emt 0:00:49]} Rxg4 {[%emt 0:00:10]} 23. Kf1 {[%emt 0:05:47]} Bg5 {[%emt 0:01:48]} 24. f3 {[%emt 0:01:21]} (24. c3 $17) 24... Rd4 {[%emt 0:00:32]} 25. Ke2 {[%emt 0:00:06]} Ke7 $36 {[%emt 0:02:04][%mdl 2048] White must now prevent ...Rg8. Keeping White busy.} 26. Bg1 $2 {[%emt 0:00:59]} (26. c3 {was called for.} Ra4 27. a3) 26... Rxd2+ $19 {[%emt 0:00:08]} 27. Rxd2 {[%emt 0:00:04]} Bxd2 {[%emt 0:00:06]} 28. Kxd2 {[%emt 0:00:10][%mdl 4096] Endgame KRB-KRN} Rg8 {[%emt 0:00:08]} 29. Bf2 {[%emt 0:00:46]} Rxg2 {[%emt 0:00:36]} 30. Ke2 {[%emt 0:00:33] [#]} Rh2 {[%emt 0:07:50] Prevents Rh1.} 31. Rg1 {[%emt 0:07:27]} Ne5 {[%emt 0:04:16] Inhibits Rg4.} 32. b3 {[%emt 0:06:12]} a6 {[%emt 0:01:49]} 33. a4 {[%emt 0:00:43]} Ng6 {[%emt 0:00:44] aiming for ...Nf4+.} 34. Rg4 {[%emt 0:01:48] Inhibits Nf4+.} h3 {[%emt 0:01:43]} 35. Rg3 {[%emt 0:09:44]} (35. Kf1 $19 Ne5 36. Rg3) 35... Nf4+ {[%emt 0:00:43] Black mates.} 36. Ke3 {[%emt 0:00:14]} e5 {[%emt 0:01:22]} 37. c3 {[%emt 0:01:19] [#]} Rxf2 $1 {[%emt 0:00:22] Weighted Error Value: White=0.61/Black=0.18 (very precise)} 0-1

[Event "12th WLC Weekend 2022"]
[Site "Eindhoven"]
[Date "2022.05.14"]
[Round "2.4"]
[White "Klapwijk, Bram"]
[Black "Slagboom, Leandro"]
[Result "1/2-1/2"]
[ECO "D40"]
[WhiteElo "2245"]
[BlackElo "1997"]
[Annotator "TA"]
[PlyCount "134"]
[EventDate "2022.05.13"]
[EventType "swiss"]
[EventCountry "NED"]
[SourceTitle "playchess.com"]
[Source "ChessBase"]
[SourceQuality "1"]
[TimeControl "5400+30"]

{[%evp 23,134,-18,-18,-19,-20,-20,-20,-27,-12,-16,0,-12,0,-41,-57,-45,-30,-30,-18,-17,-17,-25,0,-16,-19,-23,0,0,0,-19,0,-5,10,7,19,16,17,0,0,0,0,-7,0,-10,93,104,370,0,0,0,0,-71,181,160,376,353,346,363,350,358,375,0,216,0,372,373,353,26,364,357,303,352,321,0,229,0,231,67,64,15,24,0,65,10,10,20,20,-132,-132,-122,-136,-136,-129,-135,-116,-120,-104,-113,0,-114,-88,-82,-78,-142,-100,-160,-155,-142,0,0,0,-8,0]} 1. e4 {[%emt 0:00:04]} e6 {[%emt 0:00:04]} 2. d4 {[%emt 0:00:04]} d5 {[%emt 0:00:04]} 3. Nd2 {[%emt 0:00:04]} c5 {[%emt 0:00:05]} 4. c3 {[%emt 0:02:09]} cxd4 {[%emt 0:02:12]} 5. cxd4 {[%emt 0:00:13]} Nc6 {[%emt 0:00:44]} 6. Ngf3 {[%emt 0:00:25]} dxe4 {[%emt 0:00:57]} 7. Nxe4 {[%emt 0:00:04]} Nf6 {[%emt 0:04:27]} 8. Nc3 {[%emt 0:04:43]} a6 {[%emt 0:04:37]} 9. Bd3 {[%emt 0:12:10]} Be7 {[%emt 0:00:21]} 10. O-O {[%emt 0:01:19]} b5 {[%emt 0:03:39]} 11. Be3 {[%emt 0:11:31]} Bb7 {[%emt 0:02:57]} 12. Rc1 {[%emt 0:04:25]} O-O {[%emt 0:02:07]} 13. a4 {[%emt 0:10:01] D40: Queen's Gambit Declined: Semi-Tarrasch with 5 e3.} bxa4 {[%emt 0:04:19]} 14. Nxa4 {[%emt 0:03:31]} Nb4 {[%emt 0:03:44] [#]} 15. Bb1 $146 {[%emt 0:00:48]} ({Predecessor:} 15. Be2 Nbd5 16. Nc5 Qb6 17. Ne5 Rfc8 18. Bh5 g6 19. Bf3 Rc7 20. Bg5 Bc6 {0-1 (36) Ralls,R (2247)-Spooner,M IECC vs Hong Kong 1998}) 15... a5 {[%emt 0:06:11]} 16. Nc5 {[%emt 0:06:47]} Bd5 {[%emt 0:01:00]} 17. Rc3 {[%emt 0:04:21]} Ba2 {[%emt 0:14:32]} 18. Qa4 {[%emt 0:14:54]} Bxb1 {[%emt 0:00:19]} 19. Rxb1 {[%emt 0:00:03]} Nfd5 {[%emt 0:03:18]} 20. Rcc1 {[%emt 0:01:17]} Ra7 {[%emt 0:07:09]} 21. Ra1 {[%emt 0:05:28]} h6 {[%emt 0:04:17]} 22. Bd2 {[%emt 0:02:17]} Bf6 {[%emt 0:06:02]} 23. Qb5 {[%emt 0:04:44]} Qa8 {[%emt 0:12:23]} 24. Nd7 {[%emt 0:00:46]} Rb7 {[%emt 0:01:10]} (24... Rd8 $5 {[%cal Rd8d7]} 25. Nxf6+ Nxf6 $11) 25. Nxf6+ {[%emt 0:00:29]} Nxf6 {[%emt 0:00:17]} 26. Qe2 {[%emt 0:02:33]} Rd8 {[%emt 0:02:39]} 27. Rc5 {[%emt 0:01:23]} Rd5 {[%emt 0:00:55]} 28. Qc4 {[%emt 0:00:24]} Rxc5 {[%emt 0:02:18]} 29. dxc5 {[%emt 0:01:52] Black must now prevent Bxb4.} Nfd5 {[%emt 0:01:48]} 30. h3 {[%emt 0:05:13]} Nc6 {[%emt 0:00:37]} 31. Ra2 {[%emt 0:00:47]} Ndb4 {[%emt 0:00:40] Pair of Knights!} 32. Ra3 {[%emt 0:00:50]} Qd8 {[%emt 0:00:49]} 33. Bc3 {[%emt 0:00:40]} Nd3 {[%emt 0:04:28]} (33... Rd7 $11 {keeps the balance.}) 34. Bxg7 $1 $16 {[%emt 0:00:33]} Nxb2 {[%emt 0:00:52][%mdl 8192]} (34... Qd5 $16 {is a better defense.} 35. Qxd5 (35. Qxd3 Qxd3 36. Rxd3 Kxg7 $14) 35... exd5) 35. Bxb2 $2 {[%emt 0:00:02]} (35. Qa6 $18 Qc7 36. Bxh6) 35... Rxb2 $11 {[%emt 0:00:32]} 36. Qg4+ $40 {[%emt 0:00:42][%mdl 128] White is up to no good.} Kf8 {[%emt 0:00:37]} 37. Qf4 {[%emt 0:00:36]} (37. Qe4 $11 Qd1+ 38. Kh2) 37... Qd1+ $2 {[%emt 0:02:01][%mdl 8192]} (37... Rb1+ $1 $17 {and life is bright.} 38. Kh2 Qb8 39. Qxb8+ Rxb8) 38. Kh2 $18 {[%emt 0:00:03]} Rxf2 $2 {[%emt 0:00:57]} (38... Ke7 $16 {was necessary.}) 39. Qxh6+ {[%emt 0:00:11]} Ke8 {[%emt 0:00:11]} 40. Qh8+ {[%emt 0:00:31]} Kd7 {[%emt 0:00:27]} 41. Qh7 {[%emt 0:01:26] White wants to mate with Rd3+.} (41. Qf8 Re2 42. Qxf7+ Kc8 $18) 41... Ke8 {[%emt 0:00:55]} 42. Qh8+ {[%emt 0:00:03]} (42. Rd3 $142 Qe2 43. Qg8+ Ke7 44. Rb3) 42... Kd7 {[%emt 0:00:05]} 43. Qh7 $2 {[%emt 0:00:03]} (43. Qf8) 43... Ke8 $1 {[%emt 0:00:03]} 44. Rd3 {[%emt 0:00:29] Really sharp!} Qe2 {[%emt 0:00:58]} 45. Qg8+ {[%emt 0:01:26]} Ke7 {[%emt 0:00:06]} 46. Rb3 {[%emt 0:00:23] Intending Rb7+ and mate.} Nb4 {[%emt 0:02:19]} 47. Qg5+ {[%emt 0:00:29]} Ke8 {[%emt 0:00:39]} 48. Qg8+ {[%emt 0:00:06]} Ke7 {[%emt 0:00:06]} 49. Qg5+ {[%emt 0:00:01]} Ke8 $1 {[%emt 0:00:05]} 50. c6 $2 {[%emt 0:01:33]} (50. Qg3 $1 $18) 50... Qc4 $14 {[%emt 0:00:48]} 51. Qg8+ {[%emt 0:00:29]} (51. Ne5 $5 Rxg2+ 52. Qxg2 Qf4+ 53. Rg3 (53. Qg3 Qd2+ 54. Qg2 Qf4+ 55. Qg3 Qd2+ 56. Qg2 Qf4+ $16) 53... Qxe5 54. h4 $14) 51... Ke7 {[%emt 0:00:01]} 52. Qg5+ {[%emt 0:00:06]} Ke8 $1 {[%emt 0:00:30] [#]} 53. Qxa5 {[%emt 0:00:53]} Qxb3 $11 {[%emt 0:02:58]} (53... Nxc6 $2 54. Qc7 $1 Qd5 55. Rc3 $18) 54. Qa8+ {[%emt 0:00:04]} Ke7 {[%emt 0:00:06] ...Qxf3 is the strong threat.} 55. c7 $2 {[%emt 0:00:51] [#]} (55. Qa7+ $11 Kf8 56. Qc5+ (56. Qxf2 Nxc6 57. Ng5 Qb8+ 58. g3 Nd8 $14) 56... Kg7 57. Qd4+ (57. Qxf2 Nxc6 58. Qg3+ Kh8 $14) 57... Kg8 58. Qxf2 Nxc6 59. Qg3+ Kh8 60. Qh4+ Kg7 61. Qg5+ Kf8 62. h4) 55... Rxg2+ $3 $17 {[%emt 0:00:57][%mdl 512]} 56. Kxg2 {[%emt 0:00:27][%csl Gc7][%cal Ra8d8][%mdl 4096] Endgame KQN-KQN} Qc2+ {[%emt 0:00:21]} 57. Kf1 {[%emt 0:00:24][%csl Gc7][%cal Ra8d8]} Qxc7 {[%emt 0:00:30]} 58. Qe4 {[%emt 0:00:46]} Nd5 {[%emt 0:00:31]} 59. Qh4+ {[%emt 0:00:26]} Kd7 {[%emt 0:00:21]} 60. Qa4+ {[%emt 0:00:15]} Ke7 {[%emt 0:00:14]} 61. Qh4+ {[%emt 0:00:04]} Ke8 {[%emt 0:00:20]} 62. Qh8+ {[%emt 0:01:14] [#]} Kd7 $1 {[%emt 0:00:54]} 63. Qh7 {[%emt 0:00:33]} (63. Qg7 $142) 63... Kd6 {[%emt 0:00:41] Threatens to win with ...Qc1+.} 64. Qe4 {[%emt 0:00:30]} ({White should try} 64. Qg7) 64... Qc1+ {[%emt 0:00:32]} 65. Kf2 {[%emt 0:00:04]} f5 {[%emt 0:00:21]} (65... Qb2+ $17 66. Kg3 f5) 66. Qe5+ $11 {[%emt 0:00:07]} Kd7 {[%emt 0:00:23]} 67. Qg7+ {[%emt 0:00:25]} Kd6 {[%emt 0:00:54] White used his chance.  Weighted Error Value: White=0.58/Black=0.30} 1/2-1/2